[Event "EYTCC Open U18 2022"]
[Site "Thessaloniki"]
[Date "2022.07.14"]
[Round "3.1"]
[White "Budisavljevic, Luka"]
[Black "Fromm, Marius"]
[Result "1-0"]
[ECO "E48"]
[WhiteElo "2511"]
[BlackElo "2391"]
[Annotator "ChessBase"]
[PlyCount "83"]
[EventDate "2022.07.12"]
[EventType "team-tourn"]
[EventCountry "GRE"]
[SourceTitle "playchess.com"]
[Source "ChessBase"]
[SourceQuality "1"]
[WhiteTeam "Serbia"]
[BlackTeam "Germany"]
[WhiteTeamCountry "SRB"]
[BlackTeamCountry "GER"]
[TimeControl "40/5400+30:1800+30"]

1. d4 {[%emt 0:00:12]} Nf6 {[%emt 0:00:04]} 2. c4 {[%emt 0:00:07]} e6 {[%emt 0:00:06]} 3. Nc3 {[%emt 0:00:09]} Bb4 {[%emt 0:00:16]} 4. e3 {[%emt 0:00:06]} O-O {[%emt 0:00:13]} 5. Bd3 {[%emt 0:00:04]} d5 {[%emt 0:00:19]} 6. cxd5 {[%emt 0:00:10]} exd5 {[%emt 0:00:11]} 7. Nge2 {[%emt 0:00:19]} Re8 {[%emt 0:06:55]} 8. Bd2 {[%emt 0:00:14]} b6 {[%emt 0:08:38]} 9. O-O {[%emt 0:04:03]} Bf8 {[%emt 0:03:07]} 10. Rc1 {[%emt 0:04:01]} Bb7 {[%emt 0:01:20]} 11. Ng3 {[%emt 0:07:07]} c5 {[%emt 0:04:06]} 12. Re1 {[%emt 0:03:10]} Nbd7 {[%emt 0:02:12]} 13. b3 {[%emt 0:07:22]} Rc8 {[%emt 0:03:41]} 14. dxc5 bxc5 {[%emt 0:03:31]} 15. e4 {[%emt 0:17:31]} c4 {[%emt 0:09:26]} 16. bxc4 {[%emt 0:05:09]} Ne5 {[%emt 0:09:27]} 17. Bc2 {[%emt 0:11:24]} dxe4 {[%emt 0:14:52]} 18. Ncxe4 {[%emt 0:02:47]} Ba3 {[%emt 0:17:07]} 19. Nxf6+ {[%emt 0:02:34]} Qxf6 {[%emt 0:00:01]} 20. Rb1 {[%emt 0:00:13]} Ba8 {[%emt 0:00:38]} 21. Rb3 {[%emt 0:08:13]} Bc5 {[%emt 0:02:50]} 22. Be3 {[%emt 0:00:53]} Red8 {[%emt 0:01:12]} 23. Qe2 {[%emt 0:00:59]} g6 {[%emt 0:01:36]} 24. Bxc5 {[%emt 0:03:44]} Rxc5 {[%emt 0:00:01]} 25. Rb5 {[%emt 0:00:08]} Rdc8 {[%emt 0:00:21]} 26. Rxc5 {[%emt 0:01:32]} Rxc5 {[%emt 0:00:01]} 27. Be4 {[%emt 0:00:05]} Qd8 {[%emt 0:04:21]} 28. Bd5 {[%emt 0:08:31]} Rxd5 {[%emt 0:02:00]} 29. cxd5 {[%emt 0:00:12]} Qxd5 {[%emt 0:00:04]} 30. f3 {[%emt 0:00:48]} Nc4 {[%emt 0:01:00]} 31. Kh1 {[%emt 0:00:35]} Nb6 {[%emt 0:01:57]} 32. Rd1 {[%emt 0:02:06]} Qg5 {[%emt 0:00:33]} 33. Qd2 {[%emt 0:01:01]} Qe5 {[%emt 0:00:36]} 34. Re1 {[%emt 0:01:03]} Qf6 {[%emt 0:00:13]} 35. Ne4 {[%emt 0:01:01]} Qh4 {[%emt 0:00:54]} 36. Qc3 {[%emt 0:00:45]} Nd5 {[%emt 0:00:10]} 37. Qc8+ {[%emt 0:00:32]} Kg7 {[%emt 0:00:02]} 38. Rd1 {[%emt 0:02:49]} Nb6 {[%emt 0:00:05]} 39. Qc3+ {[%emt 0:00:10]} Kh6 {[%emt 0:00:13]} 40. Nf6 {[%emt 0:00:00]} Qa4 {[%emt 0:00:00]} 41. Ng8+ {[%emt 0:01:40]} Kh5 {[%emt 0:01:26]} 42. g4+ {[%emt 0:00:16]} 1-0

[Event "EYTCC Open U18 2022"]
[Site "Thessaloniki"]
[Date "2022.07.14"]
[Round "3.2"]
[White "Deuer, Marius"]
[Black "Tadic, Stefan"]
[Result "0-1"]
[ECO "A58"]
[WhiteElo "2338"]
[BlackElo "2356"]
[Annotator "ChessBase"]
[PlyCount "80"]
[EventDate "2022.07.12"]
[EventType "team-tourn"]
[EventCountry "GRE"]
[SourceTitle "playchess.com"]
[Source "ChessBase"]
[SourceQuality "1"]
[WhiteTeam "Germany"]
[BlackTeam "Serbia"]
[WhiteTeamCountry "GER"]
[BlackTeamCountry "SRB"]
[TimeControl "40/5400+30:1800+30"]

1. d4 {[%emt 0:00:03]} Nf6 {[%emt 0:00:43]} 2. c4 {[%emt 0:00:07]} c5 {[%emt 0:00:03]} 3. d5 {[%emt 0:00:06]} b5 {[%emt 0:00:07]} 4. cxb5 {[%emt 0:00:04]} a6 {[%emt 0:00:04]} 5. bxa6 {[%emt 0:00:07]} g6 {[%emt 0:01:30]} 6. Nc3 {[%emt 0:00:18]} Bxa6 {[%emt 0:02:18]} 7. Nf3 {[%emt 0:00:17]} d6 {[%emt 0:00:09]} 8. g3 {[%emt 0:00:35]} Bg7 {[%emt 0:00:05]} 9. Bg2 {[%emt 0:00:07]} Nbd7 {[%emt 0:00:03]} 10. O-O {[%emt 0:03:27]} Nb6 {[%emt 0:00:03]} 11. Re1 {[%emt 0:16:36]} O-O {[%emt 0:00:33]} 12. Rb1 {[%emt 0:00:40]} Bc4 {[%emt 0:01:44]} 13. e4 {[%emt 0:00:05]} Bxa2 {[%emt 0:01:59]} 14. Nxa2 {[%emt 0:01:33]} Rxa2 {[%emt 0:00:06]} 15. b4 {[%emt 0:00:02]} c4 {[%emt 0:21:24]} 16. Nd4 {[%emt 0:12:11]} Qd7 {[%emt 0:08:02]} 17. Nc6 {[%emt 0:02:03]} Ng4 {[%emt 0:23:22]} 18. Re2 {[%emt 0:14:26]} Rfa8 {[%emt 0:00:16]} 19. h3 {[%emt 0:10:29]} Ne5 {[%emt 0:05:42]} 20. Be3 {[%emt 0:08:03]} Qc7 {[%emt 0:04:01]} 21. Nxe7+ {[%emt 0:05:29]} Qxe7 {[%emt 0:01:36]} 22. Bxb6 {[%emt 0:03:28]} Nd3 {[%emt 0:02:01]} 23. Kh2 {[%emt 0:09:07]} Qb7 {[%emt 0:02:18]} 24. Be3 {[%emt 0:00:43]} Ra1 {[%emt 0:00:50]} 25. Rd2 {[%emt 0:10:12]} Rxb1 {[%emt 0:12:15]} 26. Qxb1 {[%emt 0:00:06]} Qxb4 {[%emt 0:01:24]} 27. Qc2 {[%emt 0:02:55]} Ne1 {[%emt 0:03:14]} 28. Qd1 {[%emt 0:00:34]} Nxg2 {[%emt 0:00:05]} 29. Kxg2 {[%emt 0:00:05]} c3 {[%emt 0:00:02]} 30. Re2 {[%emt 0:00:36]} Qxe4+ {[%emt 0:02:24]} 31. Kh2 {[%emt 0:00:01]} Re8 {[%emt 0:02:18]} 32. Rc2 {[%emt 0:00:11]} Rb8 {[%emt 0:01:15]} 33. Ra2 {[%emt 0:01:35]} h5 {[%emt 0:00:56]} 34. Qa4 {[%emt 0:00:36]} Rb4 {[%emt 0:01:21]} 35. Qa8+ {[%emt 0:00:30]} Kh7 {[%emt 0:00:01]} 36. Ra1 {[%emt 0:00:29]} Rb2 {[%emt 0:02:03]} 37. Kg1 {[%emt 0:00:24]} c2 {[%emt 0:00:31]} 38. Rf1 {[%emt 0:00:34]} Rb1 {[%emt 0:00:36]} 39. Qc6 {[%emt 0:00:09]} Qd3 {[%emt 0:00:19]} 40. Bc1 {[%emt 0:00:00]} Rxc1 {[%emt 0:00:00]} 0-1

[Event "EYTCC Open U18 2022"]
[Site "Thessaloniki"]
[Date "2022.07.14"]
[Round "3.3"]
[White "Ivanovic, Marko"]
[Black "Colbow, Collin"]
[Result "1-0"]
[ECO "A46"]
[WhiteElo "2310"]
[BlackElo "2325"]
[Annotator "ChessBase"]
[PlyCount "135"]
[EventDate "2022.07.12"]
[EventType "team-tourn"]
[EventCountry "GRE"]
[SourceTitle "playchess.com"]
[Source "ChessBase"]
[SourceQuality "1"]
[WhiteTeam "Serbia"]
[BlackTeam "Germany"]
[WhiteTeamCountry "SRB"]
[BlackTeamCountry "GER"]
[TimeControl "40/5400+30:1800+30"]

1. d4 {[%emt 0:00:08]} Nf6 {[%emt 0:00:04]} 2. Nf3 {[%emt 0:00:07]} e6 {[%emt 0:00:06]} 3. Bg5 {[%emt 0:00:06]} h6 {[%emt 0:00:39]} 4. Bh4 {[%emt 0:00:07]} c5 {[%emt 0:00:15]} 5. e3 {[%emt 0:00:05]} b6 {[%emt 0:00:44]} 6. Nbd2 {[%emt 0:00:23]} Bb7 {[%emt 0:01:51]} 7. Bd3 {[%emt 0:00:15]} Be7 {[%emt 0:00:33]} 8. c3 {[%emt 0:00:07]} d6 {[%emt 0:02:03]} 9. Bxf6 {[%emt 0:10:09]} Bxf6 {[%emt 0:02:30]} 10. Qe2 {[%emt 0:00:06]} Nd7 {[%emt 0:10:26]} 11. h4 {[%emt 0:00:10]} Qc7 {[%emt 0:03:06]} 12. O-O-O {[%emt 0:05:38]} O-O-O {[%emt 0:03:00]} 13. Kb1 {[%emt 0:00:21]} d5 {[%emt 0:06:50]} 14. e4 {[%emt 0:02:39]} dxe4 {[%emt 0:02:40]} 15. Bxe4 {[%emt 0:00:36]} Rhe8 {[%emt 0:14:54]} 16. g4 {[%emt 0:01:29]} Qf4 {[%emt 0:07:44]} 17. Rhg1 {[%emt 0:22:23]} Be7 {[%emt 0:05:39]} 18. g5 {[%emt 0:00:59]} hxg5 {[%emt 0:07:16]} 19. hxg5 {[%emt 0:01:30]} g6 {[%emt 0:01:20]} 20. Bxb7+ {[%emt 0:32:47]} Kxb7 {[%emt 0:00:12]} 21. Ne4 {[%emt 0:01:49]} a6 {[%emt 0:16:12]} 22. a3 {[%emt 0:05:02]} Nb8 {[%emt 0:08:12]} 23. Ne5 {[%emt 0:03:27]} cxd4 {[%emt 0:03:34]} 24. cxd4 {[%emt 0:00:07]} Rd5 {[%emt 0:00:53]} 25. Qe3 {[%emt 0:02:20]} Qf5 {[%emt 0:00:48]} 26. Rg3 {[%emt 0:01:11]} Red8 {[%emt 0:00:56]} 27. Rf3 {[%emt 0:05:38]} Rxe5 {[%emt 0:00:53]} 28. Rxf5 Rxf5 {[%emt 0:00:18]} 29. f4 {[%emt 0:01:32]} Nc6 {[%emt 0:00:15]} 30. Nc3 {[%emt 0:00:03]} Bd6 {[%emt 0:00:43]} 31. Ne2 {[%emt 0:01:34]} Rd5 {[%emt 0:00:08]} 32. Rc1 {[%emt 0:01:52]} Rc8 {[%emt 0:00:48]} 33. Qe4 {[%emt 0:00:17]} b5 {[%emt 0:00:14]} 34. Ka2 {[%emt 0:00:44]} Kb6 {[%emt 0:00:29]} 35. Rc3 {[%emt 0:00:22]} Rc7 {[%emt 0:00:12]} 36. Rd3 {[%emt 0:00:57]} b4 {[%emt 0:00:53]} 37. Rd1 {[%emt 0:00:43]} a5 {[%emt 0:00:10]} 38. Rc1 {[%emt 0:00:14]} Bf8 {[%emt 0:01:07]} 39. a4 {[%emt 0:00:18]} Bd6 {[%emt 0:00:49]} 40. Rc4 {[%emt 0:00:00]} Bf8 {[%emt 0:00:00]} 41. Qh1 {[%emt 0:07:42]} Bd6 {[%emt 0:14:54]} 42. Qh8 {[%emt 0:01:12]} Kb7 {[%emt 0:01:33]} 43. Qe8 {[%emt 0:06:16]} Rf5 {[%emt 0:01:21]} 44. Rc1 {[%emt 0:00:52]} Rd5 {[%emt 0:02:38]} 45. Rxc6 {[%emt 0:03:58]} Rxc6 {[%emt 0:00:10]} 46. Qxf7+ {[%emt 0:00:05]} Bc7 {[%emt 0:00:12]} 47. Qxg6 {[%emt 0:00:04]} Rf5 {[%emt 0:02:24]} 48. Qe8 {[%emt 0:00:27]} Bxf4 {[%emt 0:01:46]} 49. Nxf4 {[%emt 0:00:06]} Rxf4 {[%emt 0:00:06]} 50. Qd7+ {[%emt 0:00:08]} Rc7 {[%emt 0:03:13]} 51. Qb5+ {[%emt 0:00:09]} Kc8 {[%emt 0:00:19]} 52. Qe5 {[%emt 0:00:20]} Rff7 {[%emt 0:01:30]} 53. Qxe6+ {[%emt 0:00:12]} Kb8 {[%emt 0:01:22]} 54. g6 {[%emt 0:00:53]} Rg7 {[%emt 0:02:07]} 55. Qb6+ {[%emt 0:00:15]} Rb7 {[%emt 0:01:29]} 56. Qd8+ {[%emt 0:00:05]} Ka7 {[%emt 0:00:03]} 57. Qxa5+ {[%emt 0:00:04]} Kb8 {[%emt 0:00:02]} 58. Qe5+ {[%emt 0:00:09]} Ka7 {[%emt 0:00:24]} 59. Qc5+ {[%emt 0:00:04]} Kb8 {[%emt 0:01:22]} 60. Qd6+ {[%emt 0:00:04]} Ka7 {[%emt 0:00:18]} 61. a5 {[%emt 0:01:12]} Rgd7 {[%emt 0:00:28]} 62. Qc5+ {[%emt 0:00:08]} Ka6 {[%emt 0:00:21]} 63. Kb3 {[%emt 0:00:25]} Rg7 {[%emt 0:01:21]} 64. Qf5 {[%emt 0:00:26]} Rge7 {[%emt 0:00:32]} 65. Ka4 {[%emt 0:01:59]} Re1 {[%emt 0:01:06]} 66. g7 {[%emt 0:01:35]} b3 {[%emt 0:00:54]} 67. Qf6+ {[%emt 0:00:04]} Ka7 {[%emt 0:00:05]} 68. Qb6+ {[%emt 0:00:04]} 1-0

[Event "EYTCC Open U18 2022"]
[Site "Thessaloniki"]
[Date "2022.07.14"]
[Round "3.4"]
[White "Cherniaiev, Tykhon"]
[Black "Ljepic, Andrej"]
[Result "1/2-1/2"]
[ECO "C10"]
[WhiteElo "2186"]
[BlackElo "2234"]
[Annotator "ChessBase"]
[PlyCount "77"]
[EventDate "2022.07.12"]
[EventType "team-tourn"]
[EventCountry "GRE"]
[SourceTitle "playchess.com"]
[Source "ChessBase"]
[SourceQuality "1"]
[WhiteTeam "Germany"]
[BlackTeam "Serbia"]
[WhiteTeamCountry "GER"]
[BlackTeamCountry "SRB"]
[TimeControl "40/5400+30:1800+30"]

1. e4 {[%emt 0:00:10]} e6 {[%emt 0:00:10]} 2. d4 {[%emt 0:00:31]} d5 {[%emt 0:00:08]} 3. Nd2 {[%emt 0:00:14]} dxe4 {[%emt 0:00:25]} 4. Nxe4 {[%emt 0:00:06]} Bd7 {[%emt 0:00:07]} 5. Nf3 {[%emt 0:00:17]} Bc6 {[%emt 0:00:12]} 6. Bd3 {[%emt 0:00:09]} Nd7 {[%emt 0:00:09]} 7. c4 {[%emt 0:00:49]} Ngf6 {[%emt 0:01:51]} 8. Nc3 {[%emt 0:00:34]} Bxf3 {[%emt 0:07:22]} 9. Qxf3 {[%emt 0:00:35]} c6 {[%emt 0:00:11]} 10. O-O {[%emt 0:01:01]} Bd6 {[%emt 0:07:54]} 11. Be3 {[%emt 0:09:36]} Qc7 {[%emt 0:06:28]} 12. h3 {[%emt 0:03:55]} O-O {[%emt 0:02:38]} 13. Rad1 {[%emt 0:09:56]} Rfe8 {[%emt 0:03:44]} 14. Ne4 {[%emt 0:06:23]} Nxe4 15. Bxe4 {[%emt 0:00:11]} g6 {[%emt 0:03:49]} 16. Bc2 {[%emt 0:04:30]} Bf8 {[%emt 0:02:28]} 17. Rfe1 {[%emt 0:02:27]} Bg7 {[%emt 0:02:45]} 18. b3 {[%emt 0:08:06]} Qa5 {[%emt 0:15:38]} 19. Bb1 {[%emt 0:02:54]} Rac8 {[%emt 0:06:41]} 20. Bd2 {[%emt 0:08:59]} Qc7 {[%emt 0:03:21]} 21. Bf4 {[%emt 0:03:55]} Qb6 {[%emt 0:02:59]} 22. Be3 {[%emt 0:02:03]} Qa5 {[%emt 0:09:04]} 23. h4 {[%emt 0:07:35]} f5 {[%emt 0:09:11]} 24. Bd2 {[%emt 0:12:26]} Qd8 {[%emt 0:01:07]} 25. Bg5 {[%emt 0:00:56]} Bf6 {[%emt 0:03:16]} 26. Qg3 {[%emt 0:02:24]} Qc7 {[%emt 0:06:14]} 27. Bf4 {[%emt 0:03:52]} Qd8 {[%emt 0:02:15]} 28. Bg5 {[%emt 0:02:23]} Qc7 {[%emt 0:00:07]} 29. Bf4 {[%emt 0:04:23]} Qd8 {[%emt 0:00:05]} 30. h5 {[%emt 0:01:20]} Kf7 {[%emt 0:00:18]} 31. hxg6+ hxg6 {[%emt 0:00:01]} 32. Re2 {[%emt 0:01:29]} Qb6 {[%emt 0:03:01]} 33. c5 {[%emt 0:01:23]} Qd8 {[%emt 0:01:15]} 34. b4 {[%emt 0:00:51]} Bg7 {[%emt 0:00:59]} 35. Bg5 {[%emt 0:00:35]} Bf6 {[%emt 0:01:03]} 36. Bf4 {[%emt 0:00:23]} Bg7 {[%emt 0:00:46]} 37. Bg5 {[%emt 0:01:03]} Bf6 {[%emt 0:00:05]} 38. Bf4 {[%emt 0:00:06]} Bg7 {[%emt 0:00:26]} 39. Bg5 {[%emt 0:00:44]} 1/2-1/2

[Event "EYTCC Open U18 2022"]
[Site "Thessaloniki"]
[Date "2022.07.14"]
[Round "3.5"]
[White "Trost, Edvin"]
[Black "Milikow, Yoav"]
[Result "1-0"]
[ECO "D38"]
[WhiteElo "2345"]
[BlackElo "2452"]
[Annotator "ChessBase"]
[PlyCount "109"]
[EventDate "2022.07.12"]
[EventType "team-tourn"]
[EventCountry "GRE"]
[SourceTitle "playchess.com"]
[Source "ChessBase"]
[SourceQuality "1"]
[WhiteTeam "Sweden"]
[BlackTeam "Israel"]
[WhiteTeamCountry "SWE"]
[BlackTeamCountry "ISR"]
[TimeControl "40/5400+30:1800+30"]

1. d4 {[%emt 0:00:03]} Nf6 {[%emt 0:00:07]} 2. c4 {[%emt 0:00:06]} e6 {[%emt 0:00:27]} 3. Nf3 {[%emt 0:00:10]} d5 {[%emt 0:00:07]} 4. Nc3 {[%emt 0:00:04]} Bb4 {[%emt 0:00:08]} 5. Qa4+ {[%emt 0:00:04]} Nc6 {[%emt 0:00:05]} 6. a3 {[%emt 0:00:24]} Bxc3+ {[%emt 0:00:08]} 7. bxc3 {[%emt 0:00:02]} Ne4 {[%emt 0:00:24]} 8. Bf4 {[%emt 0:00:21]} g5 {[%emt 0:00:23]} 9. Be3 {[%emt 0:00:31]} Nxc3 {[%emt 0:00:28]} 10. Qc2 {[%emt 0:00:18]} Ne4 {[%emt 0:00:09]} 11. g3 {[%emt 0:00:38]} Na5 {[%emt 0:08:07]} 12. cxd5 {[%emt 0:00:06]} exd5 {[%emt 0:00:15]} 13. Nd2 {[%emt 0:00:13]} Nxd2 {[%emt 0:07:46]} 14. Bxd2 {[%emt 0:00:10]} Nc4 {[%emt 0:00:07]} 15. h4 {[%emt 0:02:41]} g4 {[%emt 0:01:12]} 16. Bg2 {[%emt 0:05:45]} c6 {[%emt 0:15:35]} 17. O-O {[%emt 0:05:47]} Qf6 {[%emt 0:03:04]} 18. Bg5 {[%emt 0:03:46]} Qg6 {[%emt 0:00:16]} 19. e4 O-O {[%emt 0:02:15]} 20. Qb3 {[%emt 0:06:06]} Be6 {[%emt 0:09:13]} 21. Qxb7 {[%emt 0:02:15]} Rfb8 {[%emt 0:02:38]} 22. Qxc6 {[%emt 0:00:51]} Rc8 23. Qb7 Rcb8 {[%emt 0:04:50]} 24. Qe7 {[%emt 0:19:57]} dxe4 {[%emt 0:00:20]} 25. h5 {[%emt 0:00:32]} Qxh5 {[%emt 0:04:21]} 26. Bxe4 {[%emt 0:00:21]} Re8 {[%emt 0:00:07]} 27. Qf6 {[%emt 0:00:05]} Nd6 {[%emt 0:01:03]} 28. Bh6 {[%emt 0:00:49]} Qxh6 {[%emt 0:00:01]} 29. Qxh6 {[%emt 0:00:06]} Nxe4 {[%emt 0:00:04]} 30. Rfe1 {[%emt 0:01:46]} Bd5 {[%emt 0:01:36]} 31. Re2 {[%emt 0:01:09]} Re6 {[%emt 0:01:13]} 32. Qf4 {[%emt 0:00:44]} Kh8 {[%emt 0:01:40]} 33. Rae1 {[%emt 0:00:44]} Rae8 {[%emt 0:00:48]} 34. Qxg4 {[%emt 0:01:28]} Bb7 {[%emt 0:05:16]} 35. Qf5 {[%emt 0:02:32]} Nd6 {[%emt 0:00:53]} 36. Rxe6 {[%emt 0:00:55]} Rxe6 {[%emt 0:00:01]} 37. Qb1 {[%emt 0:00:30]} Rh6 {[%emt 0:00:16]} 38. f3 {[%emt 0:00:20]} Bxf3 {[%emt 0:00:16]} 39. Qb8+ {[%emt 0:00:41]} Kg7 {[%emt 0:00:01]} 40. Re5 Rg6 {[%emt 0:00:00]} 41. Kf2 {[%emt 0:01:16]} Rf6 {[%emt 0:01:05]} 42. Ke1 {[%emt 0:00:57]} Be4 {[%emt 0:00:15]} 43. d5 {[%emt 0:00:24]} Bd3 {[%emt 0:00:53]} 44. Kd2 {[%emt 0:01:57]} Ba6 {[%emt 0:00:25]} 45. Rg5+ {[%emt 0:01:32]} Kh6 {[%emt 0:00:00]} 46. Rg4 {[%emt 0:00:16]} Nc4+ {[%emt 0:01:33]} 47. Kc3 {[%emt 0:01:02]} Ne3 {[%emt 0:00:37]} 48. Qf8+ {[%emt 0:00:41]} Kh5 {[%emt 0:00:06]} 49. Rh4+ {[%emt 0:00:04]} Kg5 {[%emt 0:00:11]} 50. Qg7+ {[%emt 0:00:10]} Rg6 {[%emt 0:00:01]} 51. Qe5+ {[%emt 0:00:12]} Nf5 {[%emt 0:00:01]} 52. Rf4 {[%emt 0:00:25]} Bc8 {[%emt 0:00:01]} 53. g4 {[%emt 0:00:09]} f6 {[%emt 0:00:00]} 54. Rxf5+ {[%emt 0:00:06]} Bxf5 {[%emt 0:00:07]} 55. Qxf5+ 1-0

[Event "EYTCC Open U18 2022"]
[Site "Thessaloniki"]
[Date "2022.07.14"]
[Round "3.6"]
[White "Rozen, Eytan"]
[Black "Falkevall, Axel"]
[Result "1-0"]
[ECO "E91"]
[WhiteElo "2465"]
[BlackElo "2275"]
[Annotator "ChessBase"]
[PlyCount "105"]
[EventDate "2022.07.12"]
[EventType "team-tourn"]
[EventCountry "GRE"]
[SourceTitle "playchess.com"]
[Source "ChessBase"]
[SourceQuality "1"]
[WhiteTeam "Israel"]
[BlackTeam "Sweden"]
[WhiteTeamCountry "ISR"]
[BlackTeamCountry "SWE"]
[TimeControl "40/5400+30:1800+30"]

1. d4 {[%emt 0:00:05]} Nf6 {[%emt 0:00:08]} 2. c4 {[%emt 0:00:14]} g6 {[%emt 0:00:14]} 3. Nf3 {[%emt 0:00:38]} Bg7 {[%emt 0:00:09]} 4. Nc3 {[%emt 0:02:08]} O-O {[%emt 0:00:54]} 5. e4 {[%emt 0:00:08]} d6 {[%emt 0:00:06]} 6. Be2 {[%emt 0:00:05]} Nbd7 {[%emt 0:00:55]} 7. O-O {[%emt 0:00:51]} e5 {[%emt 0:00:10]} 8. Qc2 {[%emt 0:00:26]} Qe7 {[%emt 0:01:03]} 9. Be3 {[%emt 0:11:40]} c6 {[%emt 0:00:30]} 10. d5 {[%emt 0:00:16]} c5 {[%emt 0:00:47]} 11. Ne1 {[%emt 0:01:59]} Kh8 {[%emt 0:03:25]} 12. Nd3 {[%emt 0:07:55]} Ng8 {[%emt 0:02:10]} 13. f4 {[%emt 0:01:20]} exf4 {[%emt 0:03:56]} 14. Bxf4 {[%emt 0:00:09]} Ne5 {[%emt 0:03:24]} 15. Nxe5 {[%emt 0:04:45]} Bxe5 {[%emt 0:01:24]} 16. Bd3 {[%emt 0:09:38]} Bd7 {[%emt 0:05:21]} 17. Rae1 {[%emt 0:04:16]} Rae8 {[%emt 0:06:13]} 18. Qf2 {[%emt 0:01:34]} Bxf4 {[%emt 0:04:05]} 19. Qxf4 {[%emt 0:00:03]} Qe5 {[%emt 0:01:07]} 20. Qxe5+ {[%emt 0:00:29]} Rxe5 {[%emt 0:00:13]} 21. a3 {[%emt 0:00:07]} Kg7 {[%emt 0:07:12]} 22. b4 {[%emt 0:00:09]} Rc8 {[%emt 0:09:29]} 23. Rb1 {[%emt 0:01:51]} b6 {[%emt 0:03:06]} 24. b5 {[%emt 0:02:50]} Rce8 {[%emt 0:21:50]} 25. Rf3 {[%emt 0:08:17]} Nh6 {[%emt 0:05:07]} 26. Rbf1 {[%emt 0:04:58]} f5 {[%emt 0:05:31]} 27. exf5 {[%emt 0:00:05]} gxf5 {[%emt 0:05:00]} 28. h3 {[%emt 0:03:57]} Re3 {[%emt 0:01:43]} 29. Kf2 {[%emt 0:01:43]} Rxf3+ {[%emt 0:00:26]} 30. gxf3 {[%emt 0:00:18]} Kf6 {[%emt 0:02:41]} 31. f4 {[%emt 0:00:28]} Ng8 {[%emt 0:02:05]} 32. a4 {[%emt 0:06:19]} Ne7 {[%emt 0:02:13]} 33. a5 {[%emt 0:00:47]} Ng6 {[%emt 0:01:38]} 34. Ne2 {[%emt 0:00:02]} bxa5 {[%emt 0:01:27]} 35. Ra1 {[%emt 0:00:12]} Ra8 {[%emt 0:00:31]} 36. Rxa5 {[%emt 0:00:13]} Bc8 {[%emt 0:00:16]} 37. Kf3 {[%emt 0:05:45]} a6 {[%emt 0:00:48]} 38. Nc3 {[%emt 0:01:50]} Bb7 {[%emt 0:01:39]} 39. bxa6 {[%emt 0:00:15]} Rxa6 {[%emt 0:00:15]} 40. Rxa6 {[%emt 0:00:00]} Bxa6 {[%emt 0:00:00]} 41. Nb5 {[%emt 0:00:26]} Ke7 {[%emt 0:00:19]} 42. Bxf5 {[%emt 0:02:05]} Nh4+ {[%emt 0:02:19]} 43. Ke4 {[%emt 0:01:47]} Nxf5 {[%emt 0:01:38]} 44. Kxf5 {[%emt 0:00:19]} Bc8+ {[%emt 0:01:27]} 45. Kg5 {[%emt 0:00:02]} Bxh3 {[%emt 0:12:21]} 46. f5 {[%emt 0:00:13]} Bf1 {[%emt 0:00:46]} 47. f6+ {[%emt 0:00:21]} Kf8 {[%emt 0:01:18]} 48. Nxd6 {[%emt 0:00:21]} Bd3 {[%emt 0:00:48]} 49. Nb7 {[%emt 0:11:55]} Bxc4 {[%emt 0:07:00]} 50. d6 {[%emt 0:00:52]} Ke8 {[%emt 0:01:54]} 51. Nxc5 {[%emt 0:00:09]} Bf7 {[%emt 0:00:33]} 52. Kh6 {[%emt 0:00:19]} Bg6 {[%emt 0:00:52]} 53. Kg7 {[%emt 0:00:22]} 1-0